Workbook

Sheet Турнир
J3: =SUM(J4:J53) -> 8786.472018 | N3: 10
B4: 1 | C4: И1 | F4: =IF(H4=TRUE," ",$N$11/$J$3*VLOOKUP(B4,$I$4:$J$53,2,0)) -> 105.0097319 | H4: =ISBLANK(C4) -> FALSE | I4: =B4 -> 1 | J4: =IF($N$10=I4,1,IF(J5=0,0,J5*K4)) -> 2250.402612 | K4: =IF(I4=1,$N$9,IF(I4=2,$N$8,IF(I4/$N$10<$M$7,$N$7,IF(I4/$N$10<$M$6,$N$6,$N$5)))) -> 1.5 | N4: 1.061240748
B5: 2 | C5: И2 | F5: =IF(H5=TRUE," ",$N$11/$J$3*VLOOKUP(B5,$I$4:$J$53,2,0)) -> 70.00648794 | H5: =ISBLANK(C5) -> FALSE | I5: =B5 -> 2 | J5: =IF($N$10=I5,1,IF(J6=0,0,J6*K5)) -> 1500.268408 | K5: =IF(I5=1,$N$9,IF(I5=2,$N$8,IF(I5/$N$10<$M$7,$N$7,IF(I5/$N$10<$M$6,$N$6,$N$5)))) -> 1.413439884 | N5: =N6/$N$4 -> 1.182593781
B6: 3 | C6: И3 | F6: =IF(H6=TRUE," ",$N$11/$J$3*VLOOKUP(B6,$I$4:$J$53,2,0)) -> 49.52915842 | H6: FALSE | I6: 3 | J6: =IF($N$10=I6,1,IF(J7=0,0,J7*K6)) -> 1061.430645 | K6: =IF(I6=1,$N$9,IF(I6=2,$N$8,IF(I6/$N$10<$M$7,$N$7,IF(I6/$N$10<$M$6,$N$6,$N$5)))) -> 1.331874871 | M6: 0.25 | N6: 1.255016709
B7: 4 | C7: И4 | F7: =IF(H7=TRUE," ",$N$11/$J$3*VLOOKUP(B7,$I$4:$J$53,2,0)) -> 37.18754629 | H7: FALSE | I7: 4 | J7: =IF($N$10=I7,1,IF(J8=0,0,J8*K7)) -> 796.9447194 | K7: =IF(I7=1,$N$9,IF(I7=2,$N$8,IF(I7/$N$10<$M$7,$N$7,IF(I7/$N$10<$M$6,$N$6,$N$5)))) -> 1.331874871 | M7: 0.1 | N7: 1.331874871
B8: 5 | C8: И5 | F8: =IF(H8=TRUE," ",$N$11/$J$3*VLOOKUP(B8,$I$4:$J$53,2,0)) -> 27.92120124 | H8: FALSE | I8: 5 | J8: =IF($N$10=I8,1,IF(J9=0,0,J9*K8)) -> 598.3630571 | K8: =IF(I8=1,$N$9,IF(I8=2,$N$8,IF(I8/$N$10<$M$7,$N$7,IF(I8/$N$10<$M$6,$N$6,$N$5)))) -> 1.255016709 | N8: =N9/$N$4 -> 1.413439884
B9: 6 | C9: И6 | F9: =IF(H9=TRUE," ",$N$11/$J$3*VLOOKUP(B9,$I$4:$J$53,2,0)) -> 22.24767291 | H9: FALSE | I9: 6 | J9: =IF($N$10=I9,1,IF(J10=0,0,J10*K9)) -> 476.7769647 | K9: =IF(I9=1,$N$9,IF(I9=2,$N$8,IF(I9/$N$10<$M$7,$N$7,IF(I9/$N$10<$M$6,$N$6,$N$5)))) -> 1.255016709 | N9: 1.5
B10: 7 | C10: И7 | F10: =IF(H10=TRUE," ",$N$11/$J$3*VLOOKUP(B10,$I$4:$J$53,2,0)) -> 17.7269934 | H10: FALSE | I10: 7 | J10: =IF($N$10=I10,1,IF(J11=0,0,J11*K10)) -> 379.896906 | K10: =IF(I10=1,$N$9,IF(I10=2,$N$8,IF(I10/$N$10<$M$7,$N$7,IF(I10/$N$10<$M$6,$N$6,$N$5)))) -> 1.255016709 | N10: =COUNTA(C4:E53) -> 41
B11: 8 | C11: И8 | F11: =IF(H11=TRUE," ",$N$11/$J$3*VLOOKUP(B11,$I$4:$J$53,2,0)) -> 14.12490629 | H11: =ISBLANK(C11) -> FALSE | I11: 8 | J11: =IF($N$10=I11,1,IF(J12=0,0,J12*K11)) -> 302.7026679 | K11: =IF(I11=1,$N$9,IF(I11=2,$N$8,IF(I11/$N$10<$M$7,$N$7,IF(I11/$N$10<$M$6,$N$6,$N$5)))) -> 1.255016709 | N11: =N3*N10 -> 410
B12: 9 | C12: И9 | F12: =IF(H12=TRUE," ",$N$11/$J$3*VLOOKUP(B12,$I$4:$J$53,2,0)) -> 11.25475556 | H12: FALSE | I12: 9 | J12: =IF($N$10=I12,1,IF(J13=0,0,J13*K12)) -> 241.1941337 | K12: =IF(I12=1,$N$9,IF(I12=2,$N$8,IF(I12/$N$10<$M$7,$N$7,IF(I12/$N$10<$M$6,$N$6,$N$5)))) -> 1.255016709 | N12: =MIN(F4:F53) -> 0.0466626422
B13: 10 | C13: И10 | F13: =IF(H13=TRUE," ",$N$11/$J$3*VLOOKUP(B13,$I$4:$J$53,2,0)) -> 8.967813324 | H13: FALSE | I13: 10 | J13: =IF($N$10=I13,1,IF(J14=0,0,J14*K13)) -> 192.184002 | K13: =IF(I13=1,$N$9,IF(I13=2,$N$8,IF(I13/$N$10<$M$7,$N$7,IF(I13/$N$10<$M$6,$N$6,$N$5)))) -> 1.255016709
B14: 11 | C14: И11 | F14: =IF(H14=TRUE," ",$N$11/$J$3*VLOOKUP(B14,$I$4:$J$53,2,0)) -> 7.145572853 | H14: FALSE | I14: 11 | J14: =IF($N$10=I14,1,IF(J15=0,0,J15*K14)) -> 153.1326242 | K14: =IF(I14=1,$N$9,IF(I14=2,$N$8,IF(I14/$N$10<$M$7,$N$7,IF(I14/$N$10<$M$6,$N$6,$N$5)))) -> 1.182593781
B15: 12 | C15: И12 | F15: =IF(H15=TRUE," ",$N$11/$J$3*VLOOKUP(B15,$I$4:$J$53,2,0)) -> 6.042288542 | H15: FALSE | I15: 12 | J15: =IF($N$10=I15,1,IF(J16=0,0,J16*K15)) -> 129.4887785 | K15: =IF(I15=1,$N$9,IF(I15=2,$N$8,IF(I15/$N$10<$M$7,$N$7,IF(I15/$N$10<$M$6,$N$6,$N$5)))) -> 1.182593781
B16: 13 | C16: И13 | F16: =IF(H16=TRUE," ",$N$11/$J$3*VLOOKUP(B16,$I$4:$J$53,2,0)) -> 5.109352542 | H16: FALSE | I16: 13 | J16: =IF($N$10=I16,1,IF(J17=0,0,J17*K16)) -> 109.4955686 | K16: =IF(I16=1,$N$9,IF(I16=2,$N$8,IF(I16/$N$10<$M$7,$N$7,IF(I16/$N$10<$M$6,$N$6,$N$5)))) -> 1.182593781
B17: 14 | C17: И14 | F17: =IF(H17=TRUE," ",$N$11/$J$3*VLOOKUP(B17,$I$4:$J$53,2,0)) -> 4.320462888 | H17: FALSE | I17: 14 | J17: =IF($N$10=I17,1,IF(J18=0,0,J18*K17)) -> 92.58933236 | K17: =IF(I17=1,$N$9,IF(I17=2,$N$8,IF(I17/$N$10<$M$7,$N$7,IF(I17/$N$10<$M$6,$N$6,$N$5)))) -> 1.182593781
B18: 15 | C18: И15 | F18: =IF(H18=TRUE," ",$N$11/$J$3*VLOOKUP(B18,$I$4:$J$53,2,0)) -> 3.653378664 | H18: FALSE | I18: 15 | J18: =IF($N$10=I18,1,IF(J19=0,0,J19*K18)) -> 78.29343756 | K18: =IF(I18=1,$N$9,IF(I18=2,$N$8,IF(I18/$N$10<$M$7,$N$7,IF(I18/$N$10<$M$6,$N$6,$N$5)))) -> 1.182593781
B19: 16 | C19: И16 | F19: =IF(H19=TRUE," ",$N$11/$J$3*VLOOKUP(B19,$I$4:$J$53,2,0)) -> 3.089292978 | H19: FALSE | I19: 16 | J19: =IF($N$10=I19,1,IF(J20=0,0,J20*K19)) -> 66.20484465 | K19: =IF(I19=1,$N$9,IF(I19=2,$N$8,IF(I19/$N$10<$M$7,$N$7,IF(I19/$N$10<$M$6,$N$6,$N$5)))) -> 1.182593781
B20: 17 | C20: И17 | F20: =IF(H20=TRUE," ",$N$11/$J$3*VLOOKUP(B20,$I$4:$J$53,2,0)) -> 2.612302743 | H20: FALSE | I20: 17 | J20: =IF($N$10=I20,1,IF(J21=0,0,J21*K20)) -> 55.98274379 | K20: =IF(I20=1,$N$9,IF(I20=2,$N$8,IF(I20/$N$10<$M$7,$N$7,IF(I20/$N$10<$M$6,$N$6,$N$5)))) -> 1.182593781
B21: 18 | C21: И18 | F21: =IF(H21=TRUE," ",$N$11/$J$3*VLOOKUP(B21,$I$4:$J$53,2,0)) -> 2.208960325 | H21: FALSE | I21: 18 | J21: =IF($N$10=I21,1,IF(J22=0,0,J22*K21)) -> 47.33894655 | K21: =IF(I21=1,$N$9,IF(I21=2,$N$8,IF(I21/$N$10<$M$7,$N$7,IF(I21/$N$10<$M$6,$N$6,$N$5)))) -> 1.182593781
B22: 19 | C22: И19 | F22: =IF(H22=TRUE," ",$N$11/$J$3*VLOOKUP(B22,$I$4:$J$53,2,0)) -> 1.86789442 | H22: =ISBLANK(C22) -> FALSE | I22: 19 | J22: =IF($N$10=I22,1,IF(J23=0,0,J23*K22)) -> 40.02976111 | K22: =IF(I22=1,$N$9,IF(I22=2,$N$8,IF(I22/$N$10<$M$7,$N$7,IF(I22/$N$10<$M$6,$N$6,$N$5)))) -> 1.182593781
B23: 20 | C23: И20 | F23: =IF(H23=TRUE," ",$N$11/$J$3*VLOOKUP(B23,$I$4:$J$53,2,0)) -> 1.579489466 | H23: FALSE | I23: 20 | J23: =IF($N$10=I23,1,IF(J24=0,0,J24*K23)) -> 33.84912195 | K23: =IF(I23=1,$N$9,IF(I23=2,$N$8,IF(I23/$N$10<$M$7,$N$7,IF(I23/$N$10<$M$6,$N$6,$N$5)))) -> 1.182593781
B24: 21 | C24: И21 | F24: =IF(H24=TRUE," ",$N$11/$J$3*VLOOKUP(B24,$I$4:$J$53,2,0)) -> 1.335614555 | H24: FALSE | I24: 21 | J24: =IF($N$10=I24,1,IF(J25=0,0,J25*K24)) -> 28.62278027 | K24: =IF(I24=1,$N$9,IF(I24=2,$N$8,IF(I24/$N$10<$M$7,$N$7,IF(I24/$N$10<$M$6,$N$6,$N$5)))) -> 1.182593781
B25: 22 | C25: И22 | F25: =IF(H25=TRUE," ",$N$11/$J$3*VLOOKUP(B25,$I$4:$J$53,2,0)) -> 1.129394198 | H25: FALSE | I25: 22 | J25: =IF($N$10=I25,1,IF(J26=0,0,J26*K25)) -> 24.20339151 | K25: =IF(I25=1,$N$9,IF(I25=2,$N$8,IF(I25/$N$10<$M$7,$N$7,IF(I25/$N$10<$M$6,$N$6,$N$5)))) -> 1.182593781
B26: 23 | C26: И23 | F26: =IF(H26=TRUE," ",$N$11/$J$3*VLOOKUP(B26,$I$4:$J$53,2,0)) -> 0.955014491 | H26: FALSE | I26: 23 | J26: =IF($N$10=I26,1,IF(J27=0,0,J27*K26)) -> 20.46636122 | K26: =IF(I26=1,$N$9,IF(I26=2,$N$8,IF(I26/$N$10<$M$7,$N$7,IF(I26/$N$10<$M$6,$N$6,$N$5)))) -> 1.182593781
B27: 24 | C27: И24 | F27: =IF(H27=TRUE," ",$N$11/$J$3*VLOOKUP(B27,$I$4:$J$53,2,0)) -> 0.8075592027 | H27: FALSE | I27: 24 | J27: =IF($N$10=I27,1,IF(J28=0,0,J28*K27)) -> 17.30633253 | K27: =IF(I27=1,$N$9,IF(I27=2,$N$8,IF(I27/$N$10<$M$7,$N$7,IF(I27/$N$10<$M$6,$N$6,$N$5)))) -> 1.182593781
B28: 25 | C28: И25 | F28: =IF(H28=TRUE," ",$N$11/$J$3*VLOOKUP(B28,$I$4:$J$53,2,0)) -> 0.6828711732 | H28: FALSE | I28: 25 | J28: =IF($N$10=I28,1,IF(J29=0,0,J29*K28)) -> 14.63421575 | K28: =IF(I28=1,$N$9,IF(I28=2,$N$8,IF(I28/$N$10<$M$7,$N$7,IF(I28/$N$10<$M$6,$N$6,$N$5)))) -> 1.182593781
B29: 26 | C29: И26 | F29: =IF(H29=TRUE," ",$N$11/$J$3*VLOOKUP(B29,$I$4:$J$53,2,0)) -> 0.5774351127 | H29: FALSE | I29: 26 | J29: =IF($N$10=I29,1,IF(J30=0,0,J30*K29)) -> 12.37467673 | K29: =IF(I29=1,$N$9,IF(I29=2,$N$8,IF(I29/$N$10<$M$7,$N$7,IF(I29/$N$10<$M$6,$N$6,$N$5)))) -> 1.182593781
B30: 27 | C30: И27 | F30: =IF(H30=TRUE," ",$N$11/$J$3*VLOOKUP(B30,$I$4:$J$53,2,0)) -> 0.4882784959 | H30: FALSE | I30: 27 | J30: =IF($N$10=I30,1,IF(J31=0,0,J31*K30)) -> 10.46401303 | K30: =IF(I30=1,$N$9,IF(I30=2,$N$8,IF(I30/$N$10<$M$7,$N$7,IF(I30/$N$10<$M$6,$N$6,$N$5)))) -> 1.182593781
B31: 28 | C31: И28 | F31: =IF(H31=TRUE," ",$N$11/$J$3*VLOOKUP(B31,$I$4:$J$53,2,0)) -> 0.4128877588 | H31: FALSE | I31: 28 | J31: =IF($N$10=I31,1,IF(J32=0,0,J32*K31)) -> 8.848357902 | K31: =IF(I31=1,$N$9,IF(I31=2,$N$8,IF(I31/$N$10<$M$7,$N$7,IF(I31/$N$10<$M$6,$N$6,$N$5)))) -> 1.182593781
B32: 29 | C32: И29 | F32: =IF(H32=TRUE," ",$N$11/$J$3*VLOOKUP(B32,$I$4:$J$53,2,0)) -> 0.3491374346 | H32: FALSE | I32: 29 | J32: =IF($N$10=I32,1,IF(J33=0,0,J33*K32)) -> 7.482161706 | K32: =IF(I32=1,$N$9,IF(I32=2,$N$8,IF(I32/$N$10<$M$7,$N$7,IF(I32/$N$10<$M$6,$N$6,$N$5)))) -> 1.182593781
B33: 30 | C33: И30 | F33: =IF(H33=TRUE," ",$N$11/$J$3*VLOOKUP(B33,$I$4:$J$53,2,0)) -> 0.2952302305 | H33: FALSE | I33: 30 | J33: =IF($N$10=I33,1,IF(J34=0,0,J34*K33)) -> 6.326907705 | K33: =IF(I33=1,$N$9,IF(I33=2,$N$8,IF(I33/$N$10<$M$7,$N$7,IF(I33/$N$10<$M$6,$N$6,$N$5)))) -> 1.182593781
B34: 31 | C34: И31 | F34: =IF(H34=TRUE," ",$N$11/$J$3*VLOOKUP(B34,$I$4:$J$53,2,0)) -> 0.249646358 | H34: FALSE | I34: 31 | J34: =IF($N$10=I34,1,IF(J35=0,0,J35*K34)) -> 5.350026194 | K34: =IF(I34=1,$N$9,IF(I34=2,$N$8,IF(I34/$N$10<$M$7,$N$7,IF(I34/$N$10<$M$6,$N$6,$N$5)))) -> 1.182593781
B35: 32 | C35: И32 | F35: =IF(H35=TRUE," ",$N$11/$J$3*VLOOKUP(B35,$I$4:$J$53,2,0)) -> 0.2111006857 | H35: FALSE | I35: 32 | J35: =IF($N$10=I35,1,IF(J36=0,0,J36*K35)) -> 4.523976263 | K35: =IF(I35=1,$N$9,IF(I35=2,$N$8,IF(I35/$N$10<$M$7,$N$7,IF(I35/$N$10<$M$6,$N$6,$N$5)))) -> 1.182593781
B36: 33 | C36: И33 | F36: =IF(H36=TRUE," ",$N$11/$J$3*VLOOKUP(B36,$I$4:$J$53,2,0)) -> 0.1785065075 | H36: FALSE | I36: 33 | J36: =IF($N$10=I36,1,IF(J37=0,0,J37*K36)) -> 3.82546935 | K36: =IF(I36=1,$N$9,IF(I36=2,$N$8,IF(I36/$N$10<$M$7,$N$7,IF(I36/$N$10<$M$6,$N$6,$N$5)))) -> 1.182593781
B37: 34 | C37: И34 | F37: =IF(H37=TRUE," ",$N$11/$J$3*VLOOKUP(B37,$I$4:$J$53,2,0)) -> 0.1509449063 | H37: FALSE | I37: 34 | J37: 3.234812673 | K37: 1.182593781
B38: 35 | C38: И35 | F38: =IF(H38=TRUE," ",$N$11/$J$3*VLOOKUP(B38,$I$4:$J$53,2,0)) -> 0.1276388467 | H38: FALSE | I38: 35 | J38: 2.735354037 | K38: 1.182593781
B39: 36 | C39: И36 | F39: =IF(H39=TRUE," ",$N$11/$J$3*VLOOKUP(B39,$I$4:$J$53,2,0)) -> 0.1079312683 | H39: FALSE | I39: 36 | J39: 2.313012364 | K39: 1.182593781
B40: 37 | C40: И37 | F40: =IF(H40=TRUE," ",$N$11/$J$3*VLOOKUP(B40,$I$4:$J$53,2,0)) -> 0.09126656173 | H40: FALSE | I40: 37 | J40: 1.955880709 | K40: 1.182593781
B41: 38 | C41: И38 | F41: =IF(H41=TRUE," ",$N$11/$J$3*VLOOKUP(B41,$I$4:$J$53,2,0)) -> 0.07717490418 | H41: FALSE | I41: 38 | J41: 1.653890576 | K41: 1.182593781
B42: 39 | C42: И39 | F42: =IF(H42=TRUE," ",$N$11/$J$3*VLOOKUP(B42,$I$4:$J$53,2,0)) -> 0.06525901405 | H42: FALSE | I42: 39 | J42: 1.398528051 | K42: 1.182593781
B43: 40 | C43: И40 | F43: =IF(H43=TRUE," ",$N$11/$J$3*VLOOKUP(B43,$I$4:$J$53,2,0)) -> 0.05518295047 | H43: FALSE | I43: 40 | J43: 1.182593781 | K43: 1.182593781
B44: 41 | C44: И41 | F44: =IF(H44=TRUE," ",$N$11/$J$3*VLOOKUP(B44,$I$4:$J$53,2,0)) -> 0.0466626422 | H44: =ISBLANK(C44) -> FALSE | I44: =B44 -> 41 | J44: 1 | K44: 1.182593781
B45: 42 | F45: =IF(H45=TRUE," ",$N$11/$J$3*VLOOKUP(B45,$I$4:$J$53,2,0)) ->  | H45: TRUE | I45: 42 | J45: 0 | K45: 1.182593781
B46: 43 | F46: =IF(H46=TRUE," ",$N$11/$J$3*VLOOKUP(B46,$I$4:$J$53,2,0)) ->  | H46: TRUE | I46: 43 | J46: 0 | K46: 1.182593781
B47: 44 | F47: =IF(H47=TRUE," ",$N$11/$J$3*VLOOKUP(B47,$I$4:$J$53,2,0)) ->  | H47: TRUE | I47: 44 | J47: 0 | K47: 1.182593781
B48: 45 | F48: =IF(H48=TRUE," ",$N$11/$J$3*VLOOKUP(B48,$I$4:$J$53,2,0)) ->  | H48: TRUE | I48: 45 | J48: 0 | K48: 1.182593781
B49: 46 | F49: =IF(H49=TRUE," ",$N$11/$J$3*VLOOKUP(B49,$I$4:$J$53,2,0)) ->  | H49: TRUE | I49: 46 | J49: 0 | K49: 1.182593781
B50: 47 | F50: =IF(H50=TRUE," ",$N$11/$J$3*VLOOKUP(B50,$I$4:$J$53,2,0)) ->  | H50: TRUE | I50: 47 | J50: 0 | K50: 1.182593781
B51: 48 | F51: =IF(H51=TRUE," ",$N$11/$J$3*VLOOKUP(B51,$I$4:$J$53,2,0)) ->  | H51: TRUE | I51: 48 | J51: 0 | K51: 1.182593781
B52: 49 | F52: =IF(H52=TRUE," ",$N$11/$J$3*VLOOKUP(B52,$I$4:$J$53,2,0)) ->  | H52: TRUE | I52: 49 | J52: 0 | K52: 1.182593781
B53: 50 | F53: =IF(H53=TRUE," ",$N$11/$J$3*VLOOKUP(B53,$I$4:$J$53,2,0)) ->  | H53: TRUE | I53: 50 | J53: 0 | K53: 1.182593781
